Workbook

Sheet Информация о закупках
D5: Информация об объемах товаров и услуг, их стоимости и способах приобретения *
D6: =IF(org=0,"Не определено",org) -> МУП "Тепловодоканал"
D8: № п/п | E8: Наименование поставщика | G8: № п/п | H8: Способ приобретения | I8: Реквизиты договора | K8: № п/п | L8: Наименование товара/услуги | M8: Объем приобретенных товаров, услуг | N8: Единица измерения объема | O8: Стоимость, тыс.руб. | P8: Доля расходов, % (от суммы расходов по указанной статье)
D9: 1 | E9: 2 | G9: 3 | H9: 4 | I9: 5 | K9: 6 | L9: 7 | M9: 8 | N9: 9 | O9: 10 | P9: 11
E10: Расходы на ремонт (текущий и капитальный) основных производственных средств итого. Из них товары и услуги, приобретенные у организаций, сумма оплаты услуг которых превышает 20% суммы расходов по статье | O10: =List02_costs_OPS -> 12655
D11: 0
C12: О | D12: 1 | E12: ООО "Никель" | H12: Итого по поставщику | O12: =SUM(O13:O19) -> 354.08443 | P12: =nerr(O12/List02_costs_OPS)*100 -> 
G13: 1 | H13: торги/аукционы | I13: № 30-П от 30.06.2015г. | K13: 1 | L13: Восстановление асфальтобетонного покрытия | M13: 137.5 | N13: кв. м. | O13: =130625/1000 -> 130.625
L14: Добавить товар/услугу
F15: О | G15: 2 | H15: торги/аукционы | I15: № 41-П от 12.08.2015г. | K15: 1 | L15: Восстановление асфальтобетонного покрытия | M15: 122.3 | N15: кв. м. | O15: =199000/1000 -> 199
L16: Добавить товар/услугу
F17: О | G17: 3 | H17: торги/аукционы | I17: № 49-П от 31.08.2015г. | K17: 1 | L17: Кап.ремонт тепловой камеры, расположенной угол ул. Р.Люксембург и Стояновича | M17: 1 | N17: шт. | O17: =24459.43/1000 -> 24.45943
L18: Добавить товар/услугу
H19: Добавить способ
C20: О | D20: 2 | E20: Индивидуальный предприниматель Мардоян В.В. | H20: Итого по поставщику | O20: =SUM(O21:O49) -> 9483.51531 | P20: =nerr(O20/List02_costs_OPS)*100 -> 
G21: 1 | H21: торги/аукционы | I21: № 36-П от 16.07.2015г. | K21: 1 | L21: Кап.ремонт теплотрассы, совмещенной с водопроводом по ул. Урицкого 78А | M21: 74 | N21: п. м. | O21: =(805016.04+218877.11)/1000 -> 1023.89315
L22: Добавить товар/услугу
F23: О | G23: 2 | H23: торги/аукционы | I23: № 22-П от 17.06.2015г. | K23: 1 | L23: Кап.ремонт теплотрассы, совмещенной с водопроводом по ул. Н.Островского от ТК 7-3-1 до ТК 7-3-16 А | M23: 60 | N23: п. м. | O23: =(998012.35+160934.13)/1000 -> 1158.94648
L24: Добавить товар/услугу
F25: О | G25: 3 | H25: торги/аукционы | I25: № 21-П от 17.06.2015г. | K25: 1 | L25: Кап.ремонт теплотрассы, совмещенной с водопроводом по ул. Стояновича от ТК 2-11-4А до ТК 2-4-13 | M25: 74 | N25: п. м. | O25: =(934528.89+50488.82)/1000 -> 985.01771
L26: Добавить товар/услугу
F27: О | G27: 4 | H27: торги/аукционы | I27: № 37-П от 27.07.2015г. | K27: 1 | L27: Кап.ремонт теплотрассы, совмещенной с водопроводом от ТК 1-5 до пер. Технический | M27: 60 | N27: п. м. | O27: =339400.95/1000 -> 339.40095
L28: Добавить товар/услугу
F29: О | G29: 5 | H29: торги/аукционы | I29: № 38-П от 27.07.02015г. | K29: 1 | L29: Кап.ремонт трубопроводов теплоснабжения от ВТК-1 до ВТК-2 напротив ж/д № 15 по ул. О.Кошевого | M29: 22 | N29: п. м. | O29: =(101660.5+45889.98)/1000 -> 147.55048
L30: Добавить товар/услугу
F31: О | G31: 6 | H31: торги/аукционы | I31: № 31-П от 30.06.2015г. | K31: 1 | L31: Кап.ремонт теплотрассы, совмещенной с водопроводом по ул. Стояновича от ТК 1-5 до ТК 1-5/ | M31: 60 | N31: п. м. | O31: =(831537.1+382446.84)/1000 -> 1213.98394
L32: Добавить товар/услугу
F33: О | G33: 7 | H33: торги/аукционы | I33: № 39-П от 27.07.2015г. | K33: 1 | L33: Кап. ремонт трубопроводов теплоснабжения на участке от ТК 1-28 до ТК 1-23-2 в районе ж/д по ул. Урицкого, 34 | M33: 22 | N33: п. м. | O33: =(416446.48+1339.82)/1000 -> 417.7863
L34: Добавить товар/услугу
F35: О | G35: 8 | H35: торги/аукционы | I35: № 43-П от 14.08.2015г. | K35: 1 | L35: Кап.ремонт теплотрассы от ТК-10 до ТК-10-1, кот. МО | M35: 25 | N35: п. м. | O35: =(242985.93+89689.47)/1000 -> 332.6754
L36: Добавить товар/услугу
F37: О | G37: 9 | H37: торги/аукционы | I37: № 42-П от 14.08.2015г. | K37: 1 | L37: Кап.ремонт теплотрассы, совмещенной с водопроводом по ул. Стояновича от ТК 1-6 и от ТК 1-7 к ЦОК № 1 | M37: 90 | N37: п. м. | O37: =(599194.74+535525.98)/1000 -> 1134.72072
L38: Добавить товар/услугу
F39: О | G39: 10 | H39: торги/аукционы | I39: № 52-П от 16.09.2015г. | K39: 1 | L39: Кап.ремонт теплотрасс, совмещенных с водопроводом, расположенных по по ул. Железнодорожная от ТК 2-3-12 до ТК 2-3-4А и от ТК 2-3-11 до ввода в ж/д № 11 | M39: 151 | N39: п. м. | O39: =(1302560.6+44733.54)/1000 -> 1347.29414
L40: Добавить товар/услугу
F41: О | G41: 11 | H41: торги/аукционы | I41: № 54-П от 22.09.2015г. | K41: 1 | L41: Кап.ремонт теплотрассы, совиещенной с водопроводом между ТК 1-5-2// и ТК 1-6 по ул. Стояновича | M41: 25 | N41: п. м. | O41: =(297216.89+157979.84)/1000 -> 455.19673
L42: Добавить товар/услугу
F43: О | G43: 12 | H43: торги/аукционы | I43: № 55-П от 22.09.2015г. | K43: 1 | L43: Кап.ремонт теплотрассы, совмещенной с водопроводом от ТК 10-2-8А по ТК 10-8Б по пер. Кирпичный | M43: 50 | N43: п. м. | O43: =(234803.44+57166.14)/1000 -> 291.96958
L44: Добавить товар/услугу
F45: О | G45: 13 | H45: торги/аукционы | I45: № 63-П от 19.10.2015г. | K45: 1 | L45: Кап.ремонт теплотрассы, совмещенной с водопроводом по ул. Нагорная от ТК 3-10-14 до ТК 3-10-5 | M45: 40 | N45: п. м. | O45: =(343833.55+30267.48)/1000 -> 374.10103
L46: Добавить товар/услугу
F47: О | G47: 14 | H47: торги/аукционы | I47: № 68-П от 23.11.2015г. | K47: 1 | L47: Кап. ремонт тепловых камер | M47: =5+3 -> 8 | N47: шт. | O47: =260978.7/1000 -> 260.9787
L48: Добавить товар/услугу
H49: Добавить способ
C50: О | D50: 3 | E50: Индивидуальный предприниматель Манукян С.С. | H50: Итого по поставщику | O50: =SUM(O51:O61) -> 2386.36915 | P50: =nerr(O50/List02_costs_OPS)*100 -> 
G51: 1 | H51: торги/аукционы | I51: № 47-П от 31.08.2015г. | K51: 1 | L51: Кап.ремонт теплотрассы, совмещенной с водопроводом пер. Кирпичный от ТК 7-3-7 до ТК 7-3-17 | M51: 44 | N51: п. м. | O51: =(357765.18+52174.16)/1000 -> 409.93934
L52: Добавить товар/услугу
F53: О | G53: 2 | H53: торги/аукционы | I53: № 48-П от 31.08.2015г. | K53: 1 | L53: Кап.ремонт теплотрассы, совмещенной с водопроводом от ТК 5-1-6 до ТК 5-1-6А и ввод в дом по ул. Ремесленная, 55 | M53: 63 | N53: п. м. | O53: =(471239.1+24916.97)/1000 -> 496.15607
L54: Добавить товар/услугу
F55: О | G55: 3 | H55: торги/аукционы | I55: № 60-П от 19.10.2015г. | K55: 1 | L55: Кап.ремонт теплотрассы, совмещенной с водопроводом по ул. Первомайская от ТК 4-23 до ТК ЗАО "Ленсиб" | M55: 60 | N55: п. м. | O55: =(242208.81+24932.45)/1000 -> 267.14126
L56: Добавить товар/услугу
F57: О | G57: 4 | H57: торги/аукционы | I57: № 58-П от 19.10.2015г. | K57: 1 | L57: Кап.ремонт теплотрассы, совмещенной с водопроводом по ул. К.Либкнехта от ТК 6-1-1 до ТК 6-1-2 | M57: 36 | N57: п. м. | O57: 259.776
L58: Добавить товар/услугу
F59: О | G59: 5 | H59: торги/аукционы | I59: № 62-П от 19.10.2015г. | K59: 1 | L59: Кап.ремонт теплотрассы, совмещенной с водопроводом по ул. П.Поручикова от ТК 7-1-1 до ТК 7-4-2А | M59: 137 | N59: п. м. | O59: =(945079.77+8276.71)/1000 -> 953.35648
L60: Добавить товар/услугу
H61: Добавить способ
C62: О | D62: 4 | E62: ООО "Асфальтировщик" | H62: Итого по поставщику | O62: =SUM(O63:O65) -> 150 | P62: =nerr(O62/List02_costs_OPS)*100 -> 
G63: 1 | H63: торги/аукционы | I63: № 65-П от 29.10.2015г. | K63: 1 | L63: Восстановление асфальтобетонного покрытия после производства ремонтных работ на теплотрассах по ул. К.Либкнехта | M63: 163.5 | N63: кв. м. | O63: =150000/1000 -> 150
L64: Добавить товар/услугу
H65: Добавить способ
E66: Добавить поставщика
D68: * | E68: Раскрывается не позднее 30 дней со дня сдачи годового бухгалтерского баланса в налоговые органы.
